[Event "GrandPrix_29.05"]
[Site "Chess.com"]
[Date "2020.05.29"]
[Round "8"]
[White "Chessialist"]
[Black "Grandelicious"]
[Result "0-1"]
[WhiteElo "2513"]
[BlackElo "2698"]
[TimeControl "600+2"]
[EndTime "13:04:55 PDT"]
[Termination "Grandelicious won by resignation"]

1. c4 {[%clk 0:10:01.9]} 1... e6 {[%clk 0:10:00.2]} 2. Nf3 {[%clk 0:10:01.9]}
2... d5 {[%clk 0:10:01.3]} 3. g3 {[%clk 0:10:03.3]} 3... d4 {[%clk 0:09:59.1]}
4. d3 {[%clk 0:10:03.3]} 4... c5 {[%clk 0:09:58.3]} 5. Bg2 {[%clk 0:10:04.2]}
5... Ne7 {[%clk 0:09:59.9]} 6. O-O {[%clk 0:10:05.3]} 6... Nec6 {[%clk
0:10:01.2]} 7. e3 {[%clk 0:10:06.3]} 7... Be7 {[%clk 0:09:59.8]} 8. exd4 {[%clk
0:10:07]} 8... cxd4 {[%clk 0:10:01.7]} 9. a3 {[%clk 0:10:08.4]} 9... a5 {[%clk
0:10:02.5]} 10. b3 {[%clk 0:09:56.5]} 10... O-O {[%clk 0:09:58.8]} 11. Re1
{[%clk 0:09:57]} 11... Na6 {[%clk 0:09:37.6]} 12. Nbd2 {[%clk 0:09:45.7]} 12...
f6 {[%clk 0:09:11.7]} 13. Qc2 {[%clk 0:09:33.2]} 13... e5 {[%clk 0:09:07.8]} 14.
h4 {[%clk 0:08:46.9]} 14... Nc5 {[%clk 0:08:38.4]} 15. Ne4 {[%clk 0:08:04.2]}
15... Nxe4 {[%clk 0:08:08.4]} 16. Rxe4 {[%clk 0:08:06.1]} 16... Bf5 {[%clk
0:08:03.7]} 17. Re1 {[%clk 0:08:06.9]} 17... Qe8 {[%clk 0:07:44.8]} 18. Nd2
{[%clk 0:08:01]} 18... Qg6 {[%clk 0:07:44.2]} 19. Ne4 {[%clk 0:08:02]} 19... Be6
{[%clk 0:07:12.9]} 20. Qe2 {[%clk 0:06:50.4]} 20... h6 {[%clk 0:06:38.3]} 21. h5
{[%clk 0:06:28.6]} 21... Qf7 {[%clk 0:06:38.7]} 22. g4 {[%clk 0:06:28.7]} 22...
f5 {[%clk 0:06:36.1]} 23. gxf5 {[%clk 0:06:29.5]} 23... Bxf5 {[%clk 0:06:38]}
24. Ng3 {[%clk 0:06:30.4]} 24... Be6 {[%clk 0:06:05.6]} 25. Ra2 {[%clk 0:06:08]}
25... Bh4 {[%clk 0:05:45]} 26. Be4 {[%clk 0:05:42]} 26... Kh8 {[%clk 0:05:33.6]}
27. Bg6 {[%clk 0:05:19.2]} 27... Qe7 {[%clk 0:05:20.8]} 28. Qe4 {[%clk
0:04:48.9]} 28... Bg5 {[%clk 0:05:16.2]} 29. Bxg5 {[%clk 0:04:25.2]} 29... Qxg5
{[%clk 0:05:18.1]} 30. Rae2 {[%clk 0:04:26.3]} 30... Bg4 {[%clk 0:05:02.1]} 31.
Qd5 {[%clk 0:04:05]} 31... Bf3 {[%clk 0:04:13.1]} 32. Be4 {[%clk 0:03:44.4]}
32... Bxh5 {[%clk 0:04:07.3]} 33. Qb5 {[%clk 0:03:26.5]} 33... Bxe2 {[%clk
0:03:36.3]} 34. Rxe2 {[%clk 0:03:26.8]} 34... Rab8 {[%clk 0:03:16.7]} 35. b4
{[%clk 0:02:19.1]} 35... axb4 {[%clk 0:02:50.8]} 36. axb4 {[%clk 0:02:18.8]}
36... h5 {[%clk 0:02:51.6]} 37. Bxc6 {[%clk 0:01:43]} 37... bxc6 {[%clk
0:02:40.2]} 38. Qxe5 {[%clk 0:01:43.8]} 38... Qxe5 {[%clk 0:02:37.1]} 39. Rxe5
{[%clk 0:01:45.7]} 39... g6 {[%clk 0:01:59.1]} 40. Re6 {[%clk 0:01:44.8]} 40...
Kg7 {[%clk 0:01:55.2]} 41. Rxc6 {[%clk 0:01:43.8]} 41... Rxb4 {[%clk 0:01:56.1]}
42. Rd6 {[%clk 0:01:45]} 42... Rf4 {[%clk 0:01:01]} 43. Ne4 {[%clk 0:01:41.6]}
43... Rb1+ {[%clk 0:00:58.9]} 44. Kg2 {[%clk 0:01:42]} 44... Rg4+ {[%clk
0:00:58.6]} 45. Kf3 {[%clk 0:01:42.5]} 45... Rb7 {[%clk 0:00:47.1]} 46. Rxd4
{[%clk 0:00:40.4]} 46... Rf7+ {[%clk 0:00:47.5]} 47. Ke2 {[%clk 0:00:42]} 47...
h4 {[%clk 0:00:48.9]} 48. Nc5 {[%clk 0:00:33]} 48... Re7+ {[%clk 0:00:18.8]} 49.
Ne4 {[%clk 0:00:27.8]} 49... h3 {[%clk 0:00:18.2]} 50. Kf3 {[%clk 0:00:29]}
50... h2 {[%clk 0:00:16]} 51. Kxg4 {[%clk 0:00:27.9]} 51... h1=Q {[%clk
0:00:17.1]} 52. c5 {[%clk 0:00:27.9]} 52... Qh5+ {[%clk 0:00:16.2]} 53. Kf4
{[%clk 0:00:29.1]} 53... Rf7+ {[%clk 0:00:15.4]} 54. Ke3 {[%clk 0:00:30.4]}
54... Qf3+ {[%clk 0:00:14.7]} 55. Kd2 {[%clk 0:00:31.5]} 55... Ra7 {[%clk
0:00:16.3]} 56. c6 {[%clk 0:00:29.1]} 56... Qf4+ {[%clk 0:00:17]} 57. Kc3 {[%clk
0:00:29.2]} 57... Qc1+ {[%clk 0:00:15.2]} 58. Kb4 {[%clk 0:00:30.3]} 58... Qxc6
{[%clk 0:00:15.7]} 0-1

[Event "GrandPrix_29.05"]
[Site "Chess.com"]
[Date "2020.05.29"]
[Round "8"]
[White "Sanan_Sjugirov"]
[Black "tsaruk_maks"]
[Result "0-1"]
[WhiteElo "2639"]
[BlackElo "2351"]
[TimeControl "600+2"]
[EndTime "13:04:59 PDT"]
[Termination "tsaruk_maks won by resignation"]

1. d4 {[%clk 0:10:01.9]} 1... Nf6 {[%clk 0:10:00.1]} 2. c4 {[%clk 0:10:01.7]}
2... e6 {[%clk 0:10:01.1]} 3. Nf3 {[%clk 0:10:02.8]} 3... d5 {[%clk 0:10:00.1]}
4. g3 {[%clk 0:10:03.7]} 4... dxc4 {[%clk 0:09:59.6]} 5. Bg2 {[%clk 0:10:05]}
5... c5 {[%clk 0:10:00.9]} 6. O-O {[%clk 0:10:02.5]} 6... Nc6 {[%clk 0:10:02.4]}
7. dxc5 {[%clk 0:10:02.8]} 7... Qxd1 {[%clk 0:10:02.2]} 8. Rxd1 {[%clk
0:10:04.7]} 8... Bxc5 {[%clk 0:10:03.4]} 9. Nbd2 {[%clk 0:10:06.3]} 9... c3
{[%clk 0:09:59.5]} 10. bxc3 {[%clk 0:10:07.7]} 10... O-O {[%clk 0:09:57.9]} 11.
Nb3 {[%clk 0:10:08.8]} 11... Be7 {[%clk 0:09:55.3]} 12. c4 {[%clk 0:10:10]}
12... Bd7 {[%clk 0:09:33.8]} 13. Bb2 {[%clk 0:10:11.2]} 13... Rfd8 {[%clk
0:09:28.3]} 14. Nfd4 {[%clk 0:10:08.2]} 14... Be8 {[%clk 0:09:01.6]} 15. Nxc6
{[%clk 0:09:47.6]} 15... Bxc6 {[%clk 0:09:03.5]} 16. Bxc6 {[%clk 0:09:48.4]}
16... bxc6 {[%clk 0:09:05.4]} 17. Na5 {[%clk 0:09:24.5]} 17... Rac8 {[%clk
0:08:33.3]} 18. Bd4 {[%clk 0:06:46.5]} 18... c5 {[%clk 0:05:36.6]} 19. Be3
{[%clk 0:06:25.6]} 19... Ng4 {[%clk 0:05:31.2]} 20. Bf4 {[%clk 0:06:11.8]} 20...
g5 {[%clk 0:05:05.5]} 21. Bd2 {[%clk 0:05:31.9]} 21... Kf8 {[%clk 0:02:02.2]}
22. Rab1 {[%clk 0:04:41]} 22... Rd6 {[%clk 0:01:02.5]} 23. Bc3 {[%clk 0:03:00]}
23... Rxd1+ {[%clk 0:01:02.2]} 24. Rxd1 {[%clk 0:03:01.9]} 24... Bf6 {[%clk
0:01:03.8]} 25. Be1 {[%clk 0:02:54.2]} 25... Ne5 {[%clk 0:01:01.7]} 26. Kg2
{[%clk 0:01:54.3]} 26... Nc6 {[%clk 0:00:44.9]} 27. Rd6 {[%clk 0:01:53.8]} 27...
Nb4 {[%clk 0:00:31.2]} 28. Rd7 {[%clk 0:01:07.3]} 28... Nc2 {[%clk 0:00:23.9]}
29. Bd2 {[%clk 0:01:01.1]} 29... Rd8 {[%clk 0:00:21]} 30. Rxd8+ {[%clk
0:01:01.3]} 30... Bxd8 {[%clk 0:00:22.9]} 31. Nc6 {[%clk 0:01:02.8]} 31... Ke8
{[%clk 0:00:10.4]} 32. Bc1 {[%clk 0:00:28.8]} 32... a6 {[%clk 0:00:05.8]} 33.
Nxd8 {[%clk 0:00:14.5]} 33... Kxd8 {[%clk 0:00:06.7]} 34. Bxg5+ {[%clk 0:00:16]}
34... Kd7 {[%clk 0:00:07.6]} 35. Bc1 {[%clk 0:00:17.5]} 35... Nd4 {[%clk
0:00:06.3]} 36. Be3 {[%clk 0:00:07.9]} 36... Kc6 {[%clk 0:00:04.4]} 37. Bxd4
{[%clk 0:00:04.5]} 37... cxd4 {[%clk 0:00:05.6]} 38. Kf3 {[%clk 0:00:05.9]}
38... Kc5 {[%clk 0:00:07.2]} 39. Ke4 {[%clk 0:00:07.2]} 39... Kxc4 {[%clk
0:00:08.8]} 40. g4 {[%clk 0:00:07.4]} 40... f6 {[%clk 0:00:07.4]} 41. h4 {[%clk
0:00:08.1]} 41... a5 {[%clk 0:00:06.6]} 42. a4 {[%clk 0:00:07.6]} 42... Kb4
{[%clk 0:00:04.4]} 43. Kxd4 {[%clk 0:00:08.7]} 43... Kxa4 {[%clk 0:00:05.9]} 44.
Kc4 {[%clk 0:00:08.7]} 44... Ka3 {[%clk 0:00:07]} 45. Kc3 {[%clk 0:00:09.9]}
45... Ka4 {[%clk 0:00:08.2]} 46. Kc4 {[%clk 0:00:05.7]} 46... Ka3 {[%clk
0:00:09.3]} 47. f4 {[%clk 0:00:04.3]} 47... Kb2 {[%clk 0:00:09.6]} 48. Kb5
{[%clk 0:00:05.3]} 48... Kc3 {[%clk 0:00:10.1]} 49. e4 {[%clk 0:00:02.7]} 49...
Kd4 {[%clk 0:00:10.9]} 50. g5 {[%clk 0:00:03.5]} 50... fxg5 {[%clk 0:00:09.8]}
51. fxg5 {[%clk 0:00:05.4]} 51... Kxe4 {[%clk 0:00:09.6]} 52. h5 {[%clk
0:00:06.5]} 52... Kf5 {[%clk 0:00:10.8]} 53. g6 {[%clk 0:00:07.6]} 53... hxg6
{[%clk 0:00:12.1]} 54. hxg6 {[%clk 0:00:09.5]} 54... Kxg6 {[%clk 0:00:13.5]} 55.
Kxa5 {[%clk 0:00:11.4]} 55... Kf5 {[%clk 0:00:14.9]} 0-1

[Event "GrandPrix_29.05"]
[Site "Chess.com"]
[Date "2020.05.29"]
[Round "8"]
[White "TheJoker64"]
[Black "Grebnev_A"]
[Result "0-1"]
[WhiteElo "2248"]
[BlackElo "2206"]
[TimeControl "600+2"]
[EndTime "13:05:08 PDT"]
[Termination "Grebnev_A won by resignation"]

1. e4 {[%clk 0:10:01.9]} 1... e6 {[%clk 0:10:00.9]} 2. d4 {[%clk 0:10:02.6]}
2... d5 {[%clk 0:10:02]} 3. Bd3 {[%clk 0:10:04.2]} 3... dxe4 {[%clk 0:10:01.2]}
4. Bxe4 {[%clk 0:10:05.4]} 4... Nf6 {[%clk 0:10:03.1]} 5. Bf3 {[%clk 0:10:06.3]}
5... c5 {[%clk 0:10:04.7]} 6. Ne2 {[%clk 0:10:07]} 6... Nc6 {[%clk 0:10:06]} 7.
Be3 {[%clk 0:10:07.8]} 7... cxd4 {[%clk 0:10:07.2]} 8. Nxd4 {[%clk 0:10:08.9]}
8... Ne5 {[%clk 0:10:08.5]} 9. Nc3 {[%clk 0:10:07.2]} 9... Bd6 {[%clk
0:10:08.9]} 10. Ndb5 {[%clk 0:09:50.6]} 10... Nxf3+ {[%clk 0:09:55.9]} 11. Qxf3
{[%clk 0:09:50.3]} 11... Bb4 {[%clk 0:09:53.9]} 12. a3 {[%clk 0:09:27.9]} 12...
Bxc3+ {[%clk 0:09:53.4]} 13. Nxc3 {[%clk 0:09:28.9]} 13... O-O {[%clk
0:09:53.9]} 14. Qg3 {[%clk 0:09:17]} 14... Bd7 {[%clk 0:09:33.2]} 15. O-O-O
{[%clk 0:09:08.8]} 15... Qe7 {[%clk 0:09:18.1]} 16. Bd4 {[%clk 0:08:54.4]} 16...
Bc6 {[%clk 0:09:15.6]} 17. Qe5 {[%clk 0:08:28.7]} 17... Rfd8 {[%clk 0:09:10.9]}
18. f3 {[%clk 0:08:21.7]} 18... b6 {[%clk 0:08:48.4]} 19. Rhe1 {[%clk
0:08:03.8]} 19... Rac8 {[%clk 0:08:46.5]} 20. f4 {[%clk 0:07:50.3]} 20... Ne8
{[%clk 0:08:38.2]} 21. g3 {[%clk 0:07:38]} 21... Rd7 {[%clk 0:08:15.4]} 22. h4
{[%clk 0:07:25.8]} 22... Rcd8 {[%clk 0:08:14]} 23. f5 {[%clk 0:07:14.7]} 23...
Rd6 {[%clk 0:07:09.1]} 24. Qf4 {[%clk 0:06:49.8]} 24... Qd7 {[%clk 0:06:24.9]}
25. Be5 {[%clk 0:06:13.4]} 25... Rxd1+ {[%clk 0:06:21.9]} 26. Rxd1 {[%clk
0:06:13.8]} 26... Qe7 {[%clk 0:06:23.5]} 27. Rxd8 {[%clk 0:06:10.1]} 27... Qxd8
{[%clk 0:06:25.4]} 28. fxe6 {[%clk 0:06:11.4]} 28... fxe6 {[%clk 0:06:27.3]} 29.
Ne2 {[%clk 0:05:57.3]} 29... Qd5 {[%clk 0:06:03]} 30. Nd4 {[%clk 0:05:54.4]}
30... Qh1+ {[%clk 0:06:03.2]} 31. Kd2 {[%clk 0:05:54.7]} 31... Qg2+ {[%clk
0:06:04.8]} 32. Kc3 {[%clk 0:05:50.3]} 32... Bd5 {[%clk 0:06:05.7]} 33. b3
{[%clk 0:05:39.8]} 33... Nf6 {[%clk 0:05:21.1]} 34. Bxf6 {[%clk 0:05:08.3]}
34... gxf6 {[%clk 0:05:23]} 35. Qxf6 {[%clk 0:04:32.8]} 35... Qxg3+ {[%clk
0:05:22.5]} 36. Kb2 {[%clk 0:04:32]} 36... Qg4 {[%clk 0:05:18.2]} 37. a4 {[%clk
0:03:28.9]} 37... Qg7 {[%clk 0:04:18.5]} 38. Qxg7+ {[%clk 0:02:47]} 38... Kxg7
{[%clk 0:04:20.4]} 39. c4 {[%clk 0:02:48.6]} 39... e5 {[%clk 0:03:43.2]} 40. Nb5
{[%clk 0:02:25.5]} 40... a6 {[%clk 0:02:31.8]} 41. Na7 {[%clk 0:00:49.2]} 41...
Be6 {[%clk 0:01:59.3]} 42. a5 {[%clk 0:00:45.5]} 42... bxa5 {[%clk 0:02:01.2]}
43. c5 {[%clk 0:00:46.9]} 43... Kh6 {[%clk 0:02:00.3]} 44. c6 {[%clk 0:00:46.4]}
44... Kh5 {[%clk 0:02:01.3]} 45. c7 {[%clk 0:00:46.1]} 45... Kxh4 {[%clk
0:02:02.6]} 46. c8=Q {[%clk 0:00:47.2]} 46... Bxc8 {[%clk 0:02:03.8]} 47. Nxc8
{[%clk 0:00:48.8]} 47... Kg4 {[%clk 0:01:53.6]} 48. Nd6 {[%clk 0:00:35.5]} 48...
h5 {[%clk 0:01:52.2]} 49. Kc2 {[%clk 0:00:34.2]} 49... h4 {[%clk 0:01:51.2]} 50.
Kd3 {[%clk 0:00:30]} 50... h3 {[%clk 0:01:31.3]} 51. Ke3 {[%clk 0:00:21.1]}
51... h2 {[%clk 0:01:23.4]} 52. Ne4 {[%clk 0:00:21.4]} 52... Kh4 {[%clk
0:01:04.1]} 53. Nf2 {[%clk 0:00:20.2]} 53... Kg3 {[%clk 0:01:05.2]} 54. Ke2
{[%clk 0:00:17.9]} 54... Kg2 {[%clk 0:01:03.8]} 55. Ke3 {[%clk 0:00:18.3]} 55...
Kf1 {[%clk 0:00:53.1]} 56. Kf3 {[%clk 0:00:16.5]} 56... Ke1 {[%clk 0:00:41.7]}
57. Ke3 {[%clk 0:00:06.8]} 57... e4 {[%clk 0:00:36.2]} 58. Nh1 {[%clk
0:00:04.8]} 58... Kd1 {[%clk 0:00:33.5]} 59. Kxe4 {[%clk 0:00:06.3]} 59... Kc2
{[%clk 0:00:34.9]} 60. Kf3 {[%clk 0:00:05.7]} 60... Kxb3 {[%clk 0:00:36.3]} 61.
Kg2 {[%clk 0:00:07.2]} 61... a4 {[%clk 0:00:37.8]} 0-1

[Event "GrandPrix_29.05"]
[Site "Chess.com"]
[Date "2020.05.29"]
[Round "8"]
[White "szachuspl"]
[Black "Funo09"]
[Result "0-1"]
[WhiteElo "2407"]
[BlackElo "2659"]
[TimeControl "600+2"]
[EndTime "13:05:09 PDT"]
[Termination "Funo09 won by checkmate"]

1. d4 {[%clk 0:10:01.9]} 1... Nf6 {[%clk 0:10:00.1]} 2. c4 {[%clk 0:10:02.3]}
2... Nc6 {[%clk 0:10:00.7]} 3. Nf3 {[%clk 0:09:58.9]} 3... d6 {[%clk 0:10:01.8]}
4. d5 {[%clk 0:09:57.5]} 4... Nb8 {[%clk 0:10:02.9]} 5. Nc3 {[%clk 0:09:57.3]}
5... g6 {[%clk 0:10:03.6]} 6. e4 {[%clk 0:09:56.1]} 6... Bg7 {[%clk 0:10:05]} 7.
h3 {[%clk 0:09:53.5]} 7... O-O {[%clk 0:10:06.1]} 8. Bd3 {[%clk 0:09:43.4]} 8...
c6 {[%clk 0:10:07.4]} 9. O-O {[%clk 0:09:42.9]} 9... a5 {[%clk 0:10:08.8]} 10.
Be3 {[%clk 0:09:40.9]} 10... Na6 {[%clk 0:10:08.6]} 11. Re1 {[%clk 0:09:41]}
11... Bd7 {[%clk 0:10:08.2]} 12. Rc1 {[%clk 0:08:50.7]} 12... Rc8 {[%clk
0:09:53.9]} 13. Qd2 {[%clk 0:08:42.7]} 13... cxd5 {[%clk 0:09:45.9]} 14. exd5
{[%clk 0:07:59.8]} 14... Nc5 {[%clk 0:09:39]} 15. Bb1 {[%clk 0:07:55.7]} 15...
Re8 {[%clk 0:09:36.8]} 16. b3 {[%clk 0:07:52.4]} 16... Qb6 {[%clk 0:09:33]} 17.
Rcd1 {[%clk 0:07:47]} 17... a4 {[%clk 0:08:49]} 18. bxa4 {[%clk 0:07:30.9]}
18... Qb4 {[%clk 0:08:35.7]} 19. Rc1 {[%clk 0:05:35.9]} 19... Qxc4 {[%clk
0:08:02.5]} 20. Bh6 {[%clk 0:05:35.6]} 20... Bh8 {[%clk 0:07:15.5]} 21. Qg5
{[%clk 0:04:53.3]} 21... Nd3 {[%clk 0:06:06.5]} 22. Bxd3 {[%clk 0:04:45.2]}
22... Qxd3 {[%clk 0:06:08.4]} 23. Re3 {[%clk 0:04:19.8]} 23... Qc4 {[%clk
0:05:25.5]} 24. Rce1 {[%clk 0:04:13.8]} 24... e5 {[%clk 0:02:54.3]} 25. dxe6
{[%clk 0:04:11.4]} 25... Rxe6 {[%clk 0:02:55.1]} 26. Rxe6 {[%clk 0:03:59.9]}
26... Bxe6 {[%clk 0:02:57]} 27. Nb5 {[%clk 0:03:56.4]} 27... Qc5 {[%clk
0:02:03.7]} 28. Qg3 {[%clk 0:03:39.2]} 28... Ne8 {[%clk 0:01:19.7]} 29. Rc1
{[%clk 0:03:24.2]} 29... Qd5 {[%clk 0:01:20.8]} 30. Re1 {[%clk 0:02:55.4]} 30...
Rd8 {[%clk 0:00:56.4]} 31. Ng5 {[%clk 0:02:42.7]} 31... Bf5 {[%clk 0:00:48.7]}
32. Qe3 {[%clk 0:02:34.8]} 32... Qe5 {[%clk 0:00:21.2]} 33. Qd2 {[%clk
0:02:21.9]} 33... Qb2 {[%clk 0:00:22.2]} 34. Qa5 {[%clk 0:02:22.4]} 34... Rc8
{[%clk 0:00:12.7]} 35. Nf3 {[%clk 0:02:10]} 35... Bg7 {[%clk 0:00:09.8]} 36. Bf4
{[%clk 0:01:58.1]} 36... Qxa2 {[%clk 0:00:08.2]} 37. Qa7 {[%clk 0:01:51.6]}
37... Qd5 {[%clk 0:00:08.7]} 38. Kh2 {[%clk 0:01:42.1]} 38... h6 {[%clk
0:00:09.9]} 39. Qb6 {[%clk 0:01:19.9]} 39... g5 {[%clk 0:00:09]} 40. Bg3 {[%clk
0:01:17.2]} 40... Bf8 {[%clk 0:00:10.4]} 41. Nfd4 {[%clk 0:01:13.5]} 41... Bg6
{[%clk 0:00:10.5]} 42. Na7 {[%clk 0:01:02.6]} 42... Ra8 {[%clk 0:00:08.9]} 43.
Ndb5 {[%clk 0:00:59.6]} 43... h5 {[%clk 0:00:08.6]} 44. f3 {[%clk 0:00:49.7]}
44... h4 {[%clk 0:00:09.3]} 45. Bf2 {[%clk 0:00:51.1]} 45... Qc4 {[%clk
0:00:05.3]} 46. Qxb7 {[%clk 0:00:44.6]} 46... Rd8 {[%clk 0:00:06.7]} 47. Qc6
{[%clk 0:00:44.8]} 47... Qf4+ {[%clk 0:00:05]} 48. Kg1 {[%clk 0:00:44.6]} 48...
Ng7 {[%clk 0:00:06.2]} 49. Nd4 {[%clk 0:00:38.7]} 49... Nf5 {[%clk 0:00:06.7]}
50. Nxf5 {[%clk 0:00:39.4]} 50... Bxf5 {[%clk 0:00:08.2]} 51. a5 {[%clk
0:00:34.7]} 51... d5 {[%clk 0:00:09.6]} 52. Qc1 {[%clk 0:00:32.9]} 52... Bd6
{[%clk 0:00:05.7]} 53. Qxf4 {[%clk 0:00:33.2]} 53... Bxf4 {[%clk 0:00:07.6]} 54.
Nc6 {[%clk 0:00:34.1]} 54... Ra8 {[%clk 0:00:08.7]} 55. Rd1 {[%clk 0:00:33]}
55... Bd7 {[%clk 0:00:09.1]} 56. Nb4 {[%clk 0:00:30.5]} 56... Rxa5 {[%clk
0:00:06.8]} 57. Nxd5 {[%clk 0:00:30.1]} 57... Be5 {[%clk 0:00:07.7]} 58. Ne7+
{[%clk 0:00:29.7]} 58... Kf8 {[%clk 0:00:07.4]} 59. Rxd7 {[%clk 0:00:30.5]}
59... Ra1+ {[%clk 0:00:08.2]} 60. Be1 {[%clk 0:00:31.9]} 60... Rxe1+ {[%clk
0:00:09.5]} 61. Kf2 {[%clk 0:00:33.1]} 61... Bg3# {[%clk 0:00:11]} 0-1

[Event "GrandPrix_29.05"]
[Site "Chess.com"]
[Date "2020.05.29"]
[Round "8"]
[White "GM_dmitrij"]
[Black "MikaelyanArman1996"]
[Result "1-0"]
[WhiteElo "2485"]
[BlackElo "2267"]
[TimeControl "600+2"]
[EndTime "13:05:09 PDT"]
[Termination "GM_dmitrij won by resignation"]

1. e4 {[%clk 0:10:01.9]} 1... e5 {[%clk 0:09:55.3]} 2. Nf3 {[%clk 0:10:03.2]}
2... Nc6 {[%clk 0:09:56.3]} 3. Bc4 {[%clk 0:10:04.4]} 3... Bc5 {[%clk
0:09:56.3]} 4. c3 {[%clk 0:10:05.1]} 4... Nf6 {[%clk 0:09:57.1]} 5. d3 {[%clk
0:10:06.6]} 5... O-O {[%clk 0:09:57.6]} 6. O-O {[%clk 0:10:08.2]} 6... d5 {[%clk
0:09:56.1]} 7. exd5 {[%clk 0:10:10.1]} 7... Nxd5 {[%clk 0:09:57.9]} 8. a3 {[%clk
0:10:11.2]} 8... Bg4 {[%clk 0:08:42.2]} 9. Nbd2 {[%clk 0:09:59.7]} 9... Nb6
{[%clk 0:08:17.7]} 10. Ne4 {[%clk 0:09:47.8]} 10... Nxc4 {[%clk 0:07:35.8]} 11.
Nxc5 {[%clk 0:09:40.4]} 11... Nd6 {[%clk 0:07:36.7]} 12. Re1 {[%clk 0:09:26.2]}
12... b6 {[%clk 0:07:22.2]} 13. h3 {[%clk 0:07:53]} 13... Bf5 {[%clk 0:06:08.1]}
14. Nb3 {[%clk 0:07:41.5]} 14... Re8 {[%clk 0:06:08.6]} 15. d4 {[%clk
0:07:22.7]} 15... e4 {[%clk 0:05:59.7]} 16. Nh2 {[%clk 0:07:18.1]} 16... Qf6
{[%clk 0:05:39.7]} 17. Bf4 {[%clk 0:06:57.9]} 17... Rad8 {[%clk 0:05:40.3]} 18.
Nd2 {[%clk 0:06:50.3]} 18... Bg6 {[%clk 0:04:29.5]} 19. Qg4 {[%clk 0:06:27.6]}
19... h5 {[%clk 0:04:29.7]} 20. Qg5 {[%clk 0:06:19.9]} 20... Qxg5 {[%clk
0:04:24.4]} 21. Bxg5 {[%clk 0:06:21.8]} 21... f6 {[%clk 0:04:25.7]} 22. Bf4
{[%clk 0:06:23.2]} 22... Bf5 {[%clk 0:04:17.7]} 23. Nhf1 {[%clk 0:06:21.8]}
23... g5 {[%clk 0:04:15.8]} 24. Bxd6 {[%clk 0:06:06.9]} 24... cxd6 {[%clk
0:04:17.7]} 25. Ng3 {[%clk 0:06:01.2]} 25... Bg6 {[%clk 0:04:12.4]} 26. Ngxe4
{[%clk 0:05:50.3]} 26... Kf7 {[%clk 0:04:12.7]} 27. f3 {[%clk 0:05:25.1]} 27...
d5 {[%clk 0:04:08.4]} 28. Nf2 {[%clk 0:05:21.9]} 28... Ne7 {[%clk 0:03:52.9]}
29. g4 {[%clk 0:04:56.7]} 29... h4 {[%clk 0:03:45.5]} 30. Re2 {[%clk 0:04:33]}
30... f5 {[%clk 0:03:02.3]} 31. Rae1 {[%clk 0:03:38.3]} 31... f4 {[%clk
0:03:01.7]} 32. Nb3 {[%clk 0:03:11.2]} 32... Nc8 {[%clk 0:02:51.7]} 33. Nc1
{[%clk 0:03:07.5]} 33... Nd6 {[%clk 0:02:46.4]} 34. Nfd3 {[%clk 0:02:52.4]}
34... Nc4 {[%clk 0:02:00.7]} 35. Ne5+ {[%clk 0:02:31.7]} 35... Kf6 {[%clk
0:01:29.9]} 36. Nxg6 {[%clk 0:01:08.1]} 36... Rxe2 {[%clk 0:01:28.5]} 37. Rxe2
{[%clk 0:01:08]} 37... Kxg6 {[%clk 0:01:29.5]} 38. Nd3 {[%clk 0:01:09.6]} 38...
Ne3 {[%clk 0:01:22.8]} 39. Kf2 {[%clk 0:01:07.5]} 39... Kf6 {[%clk 0:01:20.1]}
40. Ke1 {[%clk 0:01:01.7]} 40... a5 {[%clk 0:01:14.4]} 41. Kd2 {[%clk
0:00:44.7]} 41... Rc8 {[%clk 0:01:05.4]} 42. Ne1 {[%clk 0:00:27.5]} 42... Re8
{[%clk 0:00:55.1]} 43. Kd3 {[%clk 0:00:26]} 43... Rc8 {[%clk 0:00:51.2]} 44. a4
{[%clk 0:00:25]} 44... Rc4 {[%clk 0:00:42.4]} 45. b3 {[%clk 0:00:22.9]} 45...
Rc8 {[%clk 0:00:40]} 46. Kd2 {[%clk 0:00:17.4]} 46... Nf1+ {[%clk 0:00:38.3]}
47. Kd3 {[%clk 0:00:16]} 47... Ne3 {[%clk 0:00:37.5]} 48. Ng2 {[%clk 0:00:13.9]}
48... Nd1 {[%clk 0:00:21.4]} 49. c4 {[%clk 0:00:14.7]} 49... dxc4+ {[%clk
0:00:06.8]} 50. bxc4 {[%clk 0:00:16.6]} 50... Rd8 {[%clk 0:00:04.3]} 51. Rd2
{[%clk 0:00:15.5]} 51... Ne3 {[%clk 0:00:03.6]} 52. Nxe3 {[%clk 0:00:16.4]}
52... fxe3 {[%clk 0:00:05.5]} 53. Kxe3 {[%clk 0:00:18]} 53... Ke6 {[%clk
0:00:06.5]} 54. Rb2 {[%clk 0:00:18.4]} 54... Rb8 {[%clk 0:00:07.1]} 55. c5
{[%clk 0:00:18.6]} 55... Kd5 {[%clk 0:00:08.2]} 56. Rxb6 {[%clk 0:00:19.1]}
56... Re8+ {[%clk 0:00:07.9]} 57. Kd3 {[%clk 0:00:18.1]} 57... Rd8 {[%clk
0:00:08.8]} 58. Rd6+ {[%clk 0:00:18.1]} 58... Rxd6 {[%clk 0:00:09.9]} 59. cxd6
{[%clk 0:00:20]} 59... Kxd6 {[%clk 0:00:11.8]} 60. Ke4 {[%clk 0:00:21.1]} 1-0